Cogmind - Beta 12 X4 @@@ ROGUE MODE // 2022.12.02 @ 16:01:15 Player: Lunatic Blue Result: Destroyed by G-67 Veteran with Plasma Rifle Performance ------------- Evolutions (6) 3000 Regions Visited (21) 4200 Robots Destroyed (227) 1135 Value Destroyed (8678) 8678 Prototype IDs (23) 460 Alien Tech Used (0) 0 Bonus (2254) 2254 TOTAL SCORE: 19727 Bonus ------- High Alert Combat Kills 1158 Follower Combat Kills 2212 Met Data Miner 300 Friendly Fire -1416 Cogmind --------- Core Integrity 0/1150 Matter 114/300 Energy 66/100 System Corruption 23% Temperature Cool (44) Movement Core (200) Ox3 Location -4/Factory Parts ------- > --- POWER (2) -------- (None) > --- PROPULSION (6) --- (None) > --- UTILITY (7) ------ (None) > --- WEAPON (4) ------- Heavy Plasma Cannon > --- INVENTORY (5) ---- Light Antimatter Reactor Light Antimatter Reactor Advanced Heat Sink Large Storage Unit Peak State ------------ > --- POWER ------------ Hybrid Antimatter Reactor Particle Reactor > --- PROPULSION ------- Medium Treads Medium Treads Medium Treads Medium Treads Armored Medium Treads Armored Medium Treads > --- UTILITY ---------- Advanced Heat Sink Advanced Cooling System High-capacity Storage Unit Improved Targeting Computer Centrium Medium Armor Plating Centrium Medium Armor Plating Medium Regenerative Plating > --- WEAPON ----------- KE Penetrator Railgun Railgun Advanced KE Penetrator > --- INVENTORY -------- Neutrino Core Reinforced Fission Core Light Antimatter Reactor Light Antimatter Reactor Hybrid Antimatter Reactor Hybrid Antimatter Reactor Hybrid Antimatter Reactor Medium Treads Medium Treads Advanced Heat Sink Large Storage Unit Large Storage Unit Advanced System Shield Heavy Plasma Cannon KE Penetrator Railgun Enhanced Gauss Cannon Heavy Missile Launcher Ionic Axe Ionic Axe [Rating: 121] Favorites ----------- Power Reinforced Antimatter Reactor Engine Ion Engine Power Core Neutrino Core Reactor Reinforced Antimatter Reactor Propulsion Improved Treads Treads Improved Treads Leg Flexi-carbon Leg Wheel Wheel Hover Unit Backup Propulsion III Flight Unit Improved Flight Unit Utility Large Storage Unit Device Improved Heat Sink Storage Large Storage Unit Processor Core Analyzer Hackware Hacking Suite Protection Improved Medium Armor Plating Weapon Improved Assault Rifle Energy Gun Heavy Laser Energy Cannon Long-range Proton Cannon Ballistic Gun Improved Assault Rifle Ballistic Cannon Gauss Cannon Launcher Rocket Launcher Special Weapon Mining Laser Impact Weapon Powered Hammer Slashing Weapon Ionic Axe Build | -11 -10 -10 -9 -9 -9 -8 -8 -7 -7 -7 -7 -7 -7 -6 -6 -5 -5 -5 -5 -5 -4 ------- Run | Scr Mat Min Mat Min Exi Min Mat Fac Was Fac Low Low Dat Pro Fac Fac Ext Cet Arc Hub Fac Slots Evolved 12 | . . . 2 . . . 2 2 . . . . . . 2 2 . . . . 2 Power 1 | . . . . . . . . 1 . . . . . . . . . . . . . Propulsion 4 | . . . 1 . . . . . . . . . . . 1 2 . . . . . Utility 5 | . . . . . . . 2 1 . . . . . . 1 . . . . . 1 Weapon 2 | . . . 1 . . . . . . . . . . . . . . . . . 1 Parts Attached 289 | 9 11 7 24 4 . 18 17 17 10 . 4 2 . 9 38 3 44 12 13 5 42 Power 35 | 2 1 . 1 1 . 1 1 2 3 . . . . . 5 . 8 1 3 . 6 Engine 12 | 2 1 . 1 . . . 1 2 . . . . . . 3 . 1 . 1 . . Core 10 | . . . . 1 . 1 . . . . . . . . . . 7 . . . 1 Reactor 13 | . . . . . . . . . 3 . . . . . 2 . . 1 2 . 5 Propulsion 63 | 3 2 . 4 1 . 6 2 4 1 . 1 . . . 9 . 11 2 6 . 11 Treads 44 | 1 1 . 2 . . 3 1 . 1 . 1 . . . 7 . 10 2 6 . 9 Leg 2 | . . . . . . . . . . . . . . . . . . . . . 2 Wheel 15 | 2 1 . 2 1 . 3 1 2 . . . . . . 2 . 1 . . . . Hover . | . . . . . . . . . . . . . . . . . . . . . . Flight 2 | . . . . . . . . 2 . . . . . . . . . . . . . Utility 61 | 1 2 . 4 . . 2 5 1 4 . 1 . . 3 10 1 15 6 . 1 5 Device 23 | . 2 . . . . 1 1 1 . . . . . 2 5 . 7 2 . . 2 Storage 7 | 1 . . 2 . . . . . . . . . . . 1 . 2 . . . 1 Processor 4 | . . . 1 . . . . . 1 . . . . . . 1 . . . 1 . Hackware 2 | . . . 1 . . 1 . . . . . . . . . . . . . . . Protection 25 | . . . . . . . 4 . 3 . 1 . . 1 4 . 6 4 . . 2 Artifact . | . . . . . . . . . . . . . . . . . . . . . . Weapon 130 | 3 6 7 15 2 . 9 9 10 2 . 2 2 . 6 14 2 10 3 4 4 20 Energy Gun 19 | . . . 1 . . 6 5 2 . . . . . . 3 . 2 . . . . Energy Cannon 5 | . . . 1 . . . . . . . . . . . 1 . 2 . . . 1 Ballistic Gun 66 | 3 3 5 10 2 . 1 3 5 1 . . 2 . 3 5 1 4 1 4 2 11 Ballistic Cannon 5 | . . . 1 . . . . . . . 1 . . . 1 . . . . 1 1 Launcher 24 | . 3 2 1 . . 1 1 3 1 . 1 . . 3 4 . . . . . 4 Special Weapon 2 | . . . 1 . . . . . . . . . . . . 1 . . . . . Impact Weapon 4 | . . . . . . 1 . . . . . . . . . . 2 1 . . . Slashing Weapon 5 | . . . . . . . . . . . . . . . . . . 1 . 1 3 Piercing Weapon . | . . . . . . . . . . . . . . . . . . . . . . Special Melee Weapon . | . . . . . . . . . . . . . . . . . . . . . . Unidentified Prototypes 12 | . . . 3 . . . 3 1 . . . . . 1 . . . 3 . 1 . Corrupted Parts 15 | . . . . . . . . . . . 1 . . 1 5 . 7 . 1 . . System Corruption 89 | . . . . . . . . . . . 10 . . 6 25 . 37 . 11 . . Parts Lost 89 | . 1 . . 1 . 9 . 3 . . 1 . . 1 29 . 7 1 4 . 32 Power 13 | . 1 . . 1 . . . 1 . . . . . 1 4 . 1 . . . 4 Propulsion 28 | . . . . . . 3 . 1 . . . . . . 7 . 1 1 4 . 11 Utility 21 | . . . . . . 1 . 1 . . . . . . 8 . 3 . . . 8 Weapon 27 | . . . . . . 5 . . . . 1 . . . 10 . 2 . . . 9 Highest Loss Streak 20 | . 1 . . 1 . 6 . 3 . . 1 . . 1 12 . 4 1 4 . 20 To Critical Strikes 1 | . . . . . . . . . . . . . . . . . . . . . 1 Average Slot Usage (%) 89 | . 84 100 97 99 100 93 99 92 94 92 91 92 92 91 76 3 79 95 94 100 90 Engine 4 | . 13 14 11 2 . . 4 12 3 . . . . 3 5 . . 5 2 . . Core 2 | . . . . 7 11 11 4 . . . . . . . . . 8 3 . . . Reactor 4 | . . . . . . . . . 11 15 15 15 15 10 4 . . 1 7 11 9 Treads 14 | . 14 14 11 11 11 15 9 7 7 7 7 7 7 7 7 . 22 30 29 35 26 Wheel 9 | . 14 14 20 22 22 16 18 14 10 7 7 7 7 7 5 . . . . . . Device 7 | . . 14 4 . . 2 9 11 7 7 7 7 7 7 11 . 11 10 11 7 8 Storage 8 | . 14 14 11 11 11 11 9 7 7 7 7 7 7 7 5 . 10 6 5 5 4 Processor 3 | . . . . 11 11 . . . 7 7 7 7 7 7 5 2 . . . 3 4 Hackware 1 | . . . 6 . . 6 . . . . . . . . . . . . . . . Protection 8 | . . . . . . . 18 15 14 15 15 15 15 14 9 . 5 15 17 17 13 Energy Gun 1 | . . . . . . 12 18 8 . . . . . . 1 . 1 . . . . Ballistic Gun 19 | . 27 28 28 33 33 15 8 12 19 23 15 22 23 22 12 1 9 11 16 17 18 Naked Turns 163 | . . . . . . . . . . . . . . . 42 69 50 . . . 2 Heaviest Build 120 | 14 15 13 35 34 34 36 51 58 92 84 89 89 86 93 88 5 90 92 89 89 120 Greatest Support 166 | 26 20 20 28 22 22 60 26 20 20 10 70 70 10 10 70 3 148 148 160 160 166 Greatest Overweight (x) 15 | 4 1 . 1 1 1 2 2 5 9 8 8 8 8 9 7 1 6 . 1 . 15 Average Overweight (x) 2 | . . . . 1 1 . 1 2 3 8 7 6 8 7 3 . . . . . . Largest Inventory Capacity 20 | 8 8 8 15 15 15 15 15 15 15 15 15 15 15 15 15 5 15 15 15 15 20 Average Capacity 13 | 7 8 8 10 15 15 15 15 15 15 15 15 15 15 15 14 5 14 15 15 15 19 Most Carried 20 | 4 8 8 15 15 15 15 15 15 15 15 15 15 15 15 15 5 15 15 15 15 20 Average Carried 12 | 2 6 7 10 14 15 13 14 14 14 14 15 15 15 15 12 4 8 14 14 14 17 Final Capacity 15 | 8 8 8 15 15 15 15 15 15 15 15 15 15 15 15 5 5 15 15 15 15 5 Final Carried 15 | 4 5 8 15 15 15 15 15 14 15 15 15 15 15 15 4 5 15 14 15 15 4 Class Distribution -------------------- 47% | Scavenger-Tank 13% | Mutant 13% | Scavenger-Gunner 10% | Scavenger-Mutant 8% | Tank 4% | Gunner Dominant Class ---------------- Mutant | -10/Materials Mutant | -10/Mines Scavenger-Gunner | -9/Materials Scavenger-Gunner | -9/Mines Scavenger-Mutant | -9/Exiles Scavenger-Gunner | -8/Mines Scavenger-Tank | -8/Materials Scavenger-Tank | -7/Factory Scavenger-Tank | -7/Waste Scavenger-Tank | -7/Factory Scavenger-Tank | -7/Lower Caves Scavenger-Tank | -7/Lower Caves Scavenger-Tank | -7/Data Miner Tank | -6/Proximity Caves Tank | -6/Factory Mutant | -5/Factory Scavenger-Tank | -5/Extension Scavenger-Tank | -5/Cetus Scavenger-Tank | -5/Archives Scavenger-Tank | -5/Hub_04(d) Scavenger-Tank | -4/Factory Resources | -11 -10 -10 -9 -9 -9 -8 -8 -7 -7 -7 -7 -7 -7 -6 -6 -5 -5 -5 -5 -5 -4 ----------- Run | Scr Mat Min Mat Min Exi Min Mat Fac Was Fac Low Low Dat Pro Fac Fac Ext Cet Arc Hub Fac Matter Collected 7410 | 231 100 136 1097 206 . 320 237 215 316 39 149 73 . 356 653 70 1140 360 340 196 1176 Remotely . | . . . . . . . . . . . . . . . . . . . . . . Salvage Created 9449 | . 155 135 1073 206 . 434 434 560 . 49 168 55 . 490 1046 . 1332 773 378 246 1915 Parts 473 | . 16 10 84 18 . 24 19 27 . 2 4 2 . 13 49 . 51 37 18 11 88 Haulers Intercepted 7 | . . . 3 . . . 2 . . . . . . 1 . . . . . . 1 Recyclers Shooed 10 | . . . 4 . . 1 . . . . . . . . 1 . 1 . . . 3 Parts Field Recycled . | . . . . . . . . . . . . . . . . . . . . . . Retrieved Matter . | . . . . . . . . . . . . . . . . . . . . . . Parts Self-Destructed 33 | . . . . . . . . . . . 10 5 . 18 . . . . . . . Prevented . | . . . . . . . . . . . . . . . . . . . . . . Kills | -11 -10 -10 -9 -9 -9 -8 -8 -7 -7 -7 -7 -7 -7 -6 -6 -5 -5 -5 -5 -5 -4 ------- Run | Scr Mat Min Mat Min Exi Min Mat Fac Was Fac Low Low Dat Pro Fac Fac Ext Cet Arc Hub Fac Combat Hostiles Destroyed 173 | . 7 6 23 6 . 7 7 8 . 1 4 1 . 10 26 . 10 16 4 3 34 Melee 3 | . . . . . . 1 . . . . . . . . . . . . . . 2 Guns 114 | . 4 1 18 6 . 3 7 7 . 1 3 1 . 2 16 . 6 13 4 3 19 Cannons 7 | . . . 1 . . . . . . . 1 . . . 2 . 2 1 . . . AOE 44 | . 3 5 4 . . 2 . 1 . . . . . 8 7 . 1 . . . 13 Classes Destroyed 18 | . 4 2 4 1 . 1 . . . . . . . . 5 . . . . . 1 Worker 15 | . . 1 2 1 . 3 1 4 . . . . . . . . . . . 1 2 Builder 9 | . . . 2 . . . 1 1 . . . . . . 1 . 3 . . . 1 Tunneler 2 | . . . . 1 . 1 . . . . . . . . . . . . . . . Hauler 7 | . . . 3 . . . 2 . . . . . . 1 . . . . . . 1 Recycler 5 | . . 1 1 . . 1 . 1 . . . . . . . . 1 . . . . Operator 5 | . 1 . 1 . . . . . . . . . . . 1 . . . . . 2 Watcher 5 | . 1 . 3 . . . . 1 . . . . . . . . . . . . . Swarmer 52 | . 3 6 10 4 . . 1 . . . 2 . . 2 7 . . 8 . . 9 Saboteur 1 | . . . . . . . . . . . . . . . 1 . . . . . . Grunt 72 | . 4 . 7 2 . 6 5 5 . 1 2 1 . 7 10 . 4 4 . 1 13 Brawler 10 | . . . 1 . . . . 2 . . . . . 1 1 . 2 1 . . 2 Duelist 1 | . . . . . . . . . . . . . . . 1 . . . . . . Sentry 21 | . . . 5 . . . 1 1 . . . . . . 2 . 3 . 4 2 3 Demolisher 1 | . . . . . . . . . . . . . . . 1 . . . . . . Hunter 5 | . . . . . . 1 . . . . . . . . . . . . . . 4 Programmer 4 | . . . . . . . . . . . . . . . 2 . . . . . 2 Heavy 1 | . . . . . . . . . . . . . . . . . . . . . 1 Behemoth 2 | . . . . . . . . . . . . . . . 1 . 1 . . . . Cetus Guard 3 | . . . . . . . . . . . . . . . . . . 3 . . . Thug 3 | . . . . . . . . . . . . . . . . . 3 . . . . Savage 2 | . . . . . . . . . . . . . . . . . 2 . . . . Guerrilla 1 | . . . . . . . . . . . . . . . . . 1 . . . . Best Kill Streak 12 | . 6 4 8 5 . 4 3 12 . 1 2 1 . 6 6 . 3 8 3 2 10 Combat Bots Only 9 | . 5 3 7 4 . 4 3 5 . 1 2 1 . 5 5 . 3 8 3 1 9 Max Kills in Single Turn 4 | . 1 4 3 2 . 2 1 4 . 1 1 1 . 3 2 . 4 3 1 1 4 Gunslinging 1 | . . . 1 . . . . . . . . . . . . . . 1 . . . Exploded 4 | . 1 3 3 . . 1 . 1 . . . . . 3 2 . 1 . . . 4 Melee 1 | . . . . . . 1 . . . . . . . . . . . . . . 1 Uniques/NPCs Destroyed . | . . . . . . . . . . . . . . . . . . . . . . Combat | -11 -10 -10 -9 -9 -9 -8 -8 -7 -7 -7 -7 -7 -7 -6 -6 -5 -5 -5 -5 -5 -4 -------- Run | Scr Mat Min Mat Min Exi Min Mat Fac Was Fac Low Low Dat Pro Fac Fac Ext Cet Arc Hub Fac Damage Taken 19527 | . 397 146 470 254 . 750 313 733 . 19 318 17 . 857 4988 361 1193 942 501 337 6931 Core 2673 | . 60 55 73 17 . 17 16 102 . . 26 . . 69 746 238 54 49 . . 1151 Absorbed by Shields 168 | . . . . . . . . . . . . . . . . . 168 . . . . Regen/Repaired (Parts) 1643 | . . . . . . . . . 321 . 34 . . 550 290 . . 20 87 44 297 Core Remaining (%) 67 | 100 . 54 . . . 73 97 . . . . . . 71 12 . . . . 65 . Volleys Fired 489 | . 25 10 61 15 . 25 27 32 . 2 7 1 . 24 82 9 46 29 17 11 66 Largest 4 | . 2 2 3 3 . 3 3 3 . 3 3 3 . 3 3 1 3 3 3 3 4 Hottest 243 | . 40 50 100 69 . 182 159 157 . 71 94 79 . 79 173 30 243 149 105 105 144 Shots Fired 1259 | . 44 19 165 45 . 66 59 80 . 6 19 3 . 53 193 9 123 77 45 30 223 Gun 1156 | . 38 16 157 45 . 64 59 75 . 6 13 3 . 49 177 9 101 58 45 30 211 Cannon 56 | . . . 1 . . . . . . . 6 . . . 7 . 22 19 . . 1 Launcher 43 | . 6 3 3 . . 2 . 5 . . . . . 4 9 . . . . . 11 Special 4 | . . . 4 . . . . . . . . . . . . . . . . . . Kinetic 1054 | . 38 16 158 45 . 43 22 61 . 6 19 3 . 49 152 9 89 58 45 30 211 Thermal 92 | . . . 4 . . 15 35 14 . . . . . . 11 . 12 . . . 1 Explosive 40 | . 6 3 3 . . 2 . 2 . . . . . 4 9 . . . . . 11 Electromagnetic 73 | . . . . . . 6 2 3 . . . . . . 21 . 22 19 . . . Robot Hit Streak 21 | . 12 4 10 5 . 11 10 10 . 1 5 1 . 10 21 2 8 12 15 7 18 Robot Miss Streak 7 | . 6 1 5 5 . 5 2 3 . 1 2 1 . 3 5 2 7 3 2 2 3 Penetration Max 1 | . . . . . . . . . . . . . . . . . 1 1 . . 1 Secondary Targets 17 | . 1 . 1 1 . . . 2 . . . . . 1 5 . . 2 1 . 3 Max Gunslinging Chain 1 | . 1 . 1 1 . . . 1 . . . . . 1 1 . . 1 1 . 1 Shots Hit Robots 815 | . 22 12 90 22 . 51 36 51 . 2 11 1 . 39 129 4 74 50 37 21 163 Core Hits 449 | . 16 11 47 10 . 21 19 29 . 1 7 1 . 25 85 2 40 24 14 9 88 Critical Kills 13 | . . . 1 . . . . . . . . . . 1 . . 2 1 1 . 7 Critical Parts Destroyed 16 | . . . 2 1 . 1 . . . . . . . . . . 1 2 2 1 6 Critical Strikes 36 | . . . 3 1 . 1 . 1 . . . . . 1 3 . 3 3 3 3 14 Burn 2 | . . . . . . . . 1 . . . . . . 1 . . . . . . Destroy 30 | . . . 3 1 . . . . . . . . . 1 . . 3 3 3 3 13 Corrupt 2 | . . . . . . . . . . . . . . . 2 . . . . . . Smash 1 | . . . . . . 1 . . . . . . . . . . . . . . . Sever 1 | . . . . . . . . . . . . . . . . . . . . . 1 Melee Attacks 34 | . . . . . . 12 . . . . . . . . . . 2 13 . . 7 Impact 24 | . . . . . . 12 . . . . . . . . . . 2 10 . . . Slashing 10 | . . . . . . . . . . . . . . . . . . 3 . . 7 Piercing . | . . . . . . . . . . . . . . . . . . . . . . Sneak Attacks 1 | . . . . . . 1 . . . . . . . . . . . . . . . Combat Hostiles . | . . . . . . . . . . . . . . . . . . . . . . Follow-up Attacks 1 | . . . . . . . . . . . . . . . . . . . . . 1 Damage Inflicted 24179 | . 644 494 1775 373 . 1179 687 1598 . 34 207 17 . 1684 3136 83 2594 1390 969 525 6790 Guns 15607 | . 269 134 1374 373 . 628 687 846 . 34 177 17 . 610 2086 83 1571 999 969 525 4225 Cannons 1088 | . . . 27 . . . . . . . 30 . . . 131 . 477 391 . . 32 Explosions 6655 | . 375 360 272 . . 180 . 752 . . . . . 1074 919 . 490 . . . 2233 Melee 623 | . . . . . . 367 . . . . . . . . . . 56 . . . 200 Ramming 132 | . . . 28 . . 4 . . . . . . . . . . . . . . 100 Kinetic 14233 | . 269 134 1401 373 . 338 274 667 . 34 207 17 . 610 1777 83 1331 999 969 525 4225 Thermal 2359 | . . . 74 . . 237 361 608 . . . . . . 253 . 730 . . . 96 Explosive 5522 | . 375 360 272 . . 180 . 233 . . . . . 1074 859 . . . . . 2169 Electromagnetic 1310 | . . . . . . 53 52 90 . . . . . . 247 . 477 391 . . . Impact 423 | . . . . . . 367 . . . . . . . . . . 56 . . . . Slashing 200 | . . . . . . . . . . . . . . . . . . . . . 200 Piercing . | . . . . . . . . . . . . . . . . . . . . . . Highest Corruption 57 | . . . 4 4 4 4 . 5 5 5 17 17 17 23 38 . 46 46 57 57 23 Average Corruption 18 | . . . 3 4 4 4 . 5 5 5 14 17 17 17 15 . 37 46 56 57 2 Corruption Purged . | . . . . . . . . . . . . . . . . . . . . . . Corruption Blocked . | . . . . . . . . . . . . . . . . . . . . . . Effects 332 | . . . 11 8 4 16 . 3 6 17 21 25 7 25 26 . 89 26 21 15 12 Message Errors 86 | . . . 4 4 2 4 . 1 2 2 4 7 2 3 6 . 23 7 7 4 4 Matter Fused 69 | . . . . 1 1 2 . 1 1 7 1 6 2 7 7 . 20 4 5 . 4 Heat Flow Errors 48 | . . . 2 1 1 3 . . 1 2 5 5 1 5 3 . 12 2 . 3 2 Energy Discharges 34 | . . . 1 . . 2 . 1 1 3 1 2 1 5 3 . 8 2 1 3 . Parts Rejected 5 | . . . . . . . . . . . 1 . . . . . 2 1 1 . . Data Loss (minor) 37 | . . . . 1 . 3 . . 1 . 6 3 1 1 2 . 11 3 1 2 2 Data Loss (major) 13 | . . . 2 1 . 1 . . . 2 1 1 . 2 1 . 1 . 1 . . Misfires 10 | . . . 2 . . 1 . . . . . . . 2 1 . 1 3 . . . Alerts 4 | . . . . . . . . . . 1 . 1 . . . . 1 . 1 . . Misdirections 2 | . . . . . . . . . . . . . . . 2 . . . . . . Weapon Failures 24 | . . . . . . . . . . . 2 . . . 1 . 10 4 4 3 . Overload Shots . | . . . . . . . . . . . . . . . . . . . . . . Overflow Damage 347 | . 35 46 . . . 52 . 71 . . . . . 11 3 . 43 . . . 86 Projectiles . | . . . . . . . . . . . . . . . . . . . . . . Explosions 264 | . 35 46 . . . . . 71 . . . . . 11 3 . 12 . . . 86 Melee 83 | . . . . . . 52 . . . . . . . . . . 31 . . . . Knockbacks 1 | . . . 1 . . . . . . . . . . . . . . . . . . Impact . | . . . . . . . . . . . . . . . . . . . . . . Kinetic 1 | . . . 1 . . . . . . . . . . . . . . . . . . Secondary . | . . . . . . . . . . . . . . . . . . . . . . Self-Inflicted Damage 279 | . 18 53 13 . . . . . . . . . . . 113 . 45 . . . 37 Shots 10 | . 1 2 1 . . . . . . . . . . . 4 . 1 . . . 1 Rammed 22 | . . . 6 . . 1 . . . . . . . . . . . . . . 15 Targets Rammed 22 | . . . 6 . . 1 . . . . . . . . . . . . . . 15 Kicked . | . . . . . . . . . . . . . . . . . . . . . . Crushed . | . . . . . . . . . . . . . . . . . . . . . . Highest Temperature 574 | . 2 . 160 114 217 369 342 379 188 199 300 144 206 251 329 . 574 403 . 196 275 Average Temperature 99 | . 1 . 22 24 112 122 136 256 100 66 103 63 139 74 67 . 120 206 . 72 87 Received Heat Transfer 4026 | . 156 12 150 63 . 315 180 321 . . 72 9 . 273 732 81 166 255 36 135 1070 Effects 19 | . . . . . . 1 2 6 . . . . . . 2 . 6 2 . . . Shutdowns 7 | . . . . . . . . 3 . . . . . . . . 2 2 . . . Energy Bleed 2 | . . . . . . 1 1 . . . . . . . . . . . . . . Interference 8 | . . . . . . . 1 2 . . . . . . 2 . 3 . . . . Matter Decay 1 | . . . . . . . . 1 . . . . . . . . . . . . . Short Circuit 1 | . . . . . . . . . . . . . . . . . 1 . . . . Siege Activations . | . . . . . . . . . . . . . . . . . . . . . . Robots Corrupted 4 | . . . . . . . . . . . . . . . 1 . 1 2 . . . Combat Hostiles 4 | . . . . . . . . . . . . . . . 1 . 1 2 . . . Parts Fried 10 | . . . . . . . . . . . . . . . 2 . 6 2 . . . Impact Corruptions 3 | . . . . . . 2 . . . . . . . . . . 1 . . . . Robots Melted . | . . . . . . . . . . . . . . . . . . . . . . Combat Hostiles . | . . . . . . . . . . . . . . . . . . . . . . Parts Melted 2 | . . . . . . . . 1 . . . . . . 1 . . . . . . Heat Transferred 3572 | . . . 150 . . 481 777 694 . . . . . . 550 . 770 . . . 150 Parts Sabotaged 6 | . . . . . . . . . . . . . . . 2 . . . . . 4 Parts Stolen . | . . . . . . . . . . . . . . . . . . . . . . Parts Stripped . | . . . . . . . . . . . . . . . . . . . . . . Power Chain Reactions 4 | . . . . . . . . 1 . . . . . . 1 . 2 . . . . Missiles Intercepted . | . . . . . . . . . . . . . . . . . . . . . . Alert | -11 -10 -10 -9 -9 -9 -8 -8 -7 -7 -7 -7 -7 -7 -6 -6 -5 -5 -5 -5 -5 -4 ------- Run | Scr Mat Min Mat Min Exi Min Mat Fac Was Fac Low Low Dat Pro Fac Fac Ext Cet Arc Hub Fac Peak Influence 1170 | . 395 332 485 329 . 112 120 706 247 715 . . . . 674 276 728 1108 570 353 1170 Initial 443 | . . 153 99 189 . . 31 54 247 172 . . . . 99 199 135 407 443 199 172 Average 345 | . 119 275 259 297 . 84 57 238 247 406 . . . . 452 223 428 785 534 284 496 Maximum Alert Level 4 | . 1 1 2 1 . . . 3 1 3 . . . . 2 1 3 4 2 1 4 Low Security (%) 32 | 100 81 23 41 10 . 100 100 73 . 41 . . . . 10 61 5 . . 14 17 Level 1 29 | . 18 76 29 89 . . . 1 100 4 . . . . 16 38 35 . . 85 31 Level 2 31 | . . . 28 . . . . 11 . 49 . . . . 73 . 56 33 100 . 25 Level 3 5 | . . . . . . . . 13 . 3 . . . . . . 2 63 . . 20 Level 4 . | . . . . . . . . . . . . . . . . . . 2 . . 5 Level 5 . | . . . . . . . . . . . . . . . . . . . . . . High Security . | . . . . . . . . . . . . . . . . . . . . . . Max Security . | . . . . . . . . . . . . . . . . . . . . . . Squads Dispatched 33 | . 1 . 5 . . . 1 2 . 4 . . . . 9 1 2 1 . . 7 Investigation 4 | . . . 1 . . . . . . . . . . . 1 . 1 1 . . . Extermination 3 | . . . . . . . . . . 1 . . . . 1 . . . . . 1 Reinforcement 14 | . 1 . 4 . . . 1 . . 2 . . . . 2 1 1 . . . 2 Assault 6 | . . . . . . . . 1 . . . . . . 2 . . . . . 3 Garrison 6 | . . . . . . . . 1 . 1 . . . . 3 . . . . . 1 Intercept . | . . . . . . . . . . . . . . . . . . . . . . Searches Triggered . | . . . . . . . . . . . . . . . . . . . . . . Data Miner Redirects 6 | . . . . . . . . . . . . . . . 3 . . . . . 3 Construction Impeded 2 | . . . . . . . . . . . . . . . 1 . 1 . . . . Haulers Reinforced 2 | . . . . . . . . . . 2 . . . . . . . . . . . Active Scanning Responses . | . . . . . . . . . . . . . . . . . . . . . . Cargo Convoy Interrupts 1 | . . . . . . . . . . . . . . . 1 . . . . . . Stealth | -11 -10 -10 -9 -9 -9 -8 -8 -7 -7 -7 -7 -7 -7 -6 -6 -5 -5 -5 -5 -5 -4 --------- Run | Scr Mat Min Mat Min Exi Min Mat Fac Was Fac Low Low Dat Pro Fac Fac Ext Cet Arc Hub Fac Distress Signals 16 | . 2 . 3 . . . 3 3 . . . . . . . 1 3 1 . . . Communications Jammed . | . . . . . . . . . . . . . . . . . . . . . . Distress Signals . | . . . . . . . . . . . . . . . . . . . . . . Times Spotted 316 | . 17 8 40 6 . 8 13 13 . 10 7 5 . 13 48 7 34 25 7 4 51 Peak Tracking Total 11 | . 5 3 7 4 . 3 5 6 . 4 4 4 . 5 11 6 5 6 1 2 9 Tactical Retreats 15 | . 2 . . . . 1 . 2 . . . 1 . . 2 . 2 3 . . 2 Traps | -11 -10 -10 -9 -9 -9 -8 -8 -7 -7 -7 -7 -7 -7 -6 -6 -5 -5 -5 -5 -5 -4 ------- Run | Scr Mat Min Mat Min Exi Min Mat Fac Was Fac Low Low Dat Pro Fac Fac Ext Cet Arc Hub Fac Traps Triggered 13 | . . . 3 1 . . . 2 . . . . . . 1 1 3 . . . 2 Indirectly 1 | . . . . . . . . 1 . . . . . . . . . . . . . Trap Hack Attempts . | . . . . . . . . . . . . . . . . . . . . . . Triggered . | . . . . . . . . . . . . . . . . . . . . . . Disarmed . | . . . . . . . . . . . . . . . . . . . . . . Reprogrammed . | . . . . . . . . . . . . . . . . . . . . . . Reused . | . . . . . . . . . . . . . . . . . . . . . . Traps Extracted . | . . . . . . . . . . . . . . . . . . . . . . Installed . | . . . . . . . . . . . . . . . . . . . . . . Triggered 2 | . . . . . . . . . . . . . . 2 . . . . . . . Machines | -11 -10 -10 -9 -9 -9 -8 -8 -7 -7 -7 -7 -7 -7 -6 -6 -5 -5 -5 -5 -5 -4 ---------- Run | Scr Mat Min Mat Min Exi Min Mat Fac Was Fac Low Low Dat Pro Fac Fac Ext Cet Arc Hub Fac Machines Disabled 54 | . 2 2 2 . . . 1 13 . 5 . . . . 4 . 4 5 4 1 11 Max in Single Turn 13 | . 1 1 1 . . . 1 13 . . . . . . 1 . 1 1 2 1 4 Garrison Access 4 | . . . . . . . . 1 . 1 . . . . . . . . . . 2 Machines Sabotaged . | . . . . . . . . . . . . . . . . . . . . . . Overloaded Fab Kills . | . . . . . . . . . . . . . . . . . . . . . . Hacking | -11 -10 -10 -9 -9 -9 -8 -8 -7 -7 -7 -7 -7 -7 -6 -6 -5 -5 -5 -5 -5 -4 --------- Run | Scr Mat Min Mat Min Exi Min Mat Fac Was Fac Low Low Dat Pro Fac Fac Ext Cet Arc Hub Fac Machines Accessed 38 | . 4 . 6 2 1 . 3 1 . 3 . . 4 1 2 . 3 2 . 1 5 Terminals 27 | . 4 . 5 . . . 3 1 . 2 . . . 1 1 . 3 2 . 1 4 Fabricators . | . . . . . . . . . . . . . . . . . . . . . . Repair Stations . | . . . . . . . . . . . . . . . . . . . . . . Recycling Units 1 | . . . 1 . . . . . . . . . . . . . . . . . . Scanalyzers . | . . . . . . . . . . . . . . . . . . . . . . Garrison Access 3 | . . . . . . . . . . 1 . . . . 1 . . . . . 1 Total Hacks 125 | . 19 . 25 2 1 . 12 2 . 6 . . 30 2 4 . 8 5 . 2 7 Successful 74 | . 12 . 13 2 1 . 7 1 . 3 . . 30 2 . . . 1 . . 2 Failed 51 | . 7 . 12 . . . 5 1 . 3 . . . . 4 . 8 4 . 2 5 Catastrophic 11 | . 1 . 3 . . . . . . 2 . . . . 2 . . . . 1 2 Database Lockouts . | . . . . . . . . . . . . . . . . . . . . . . Manual 66 | . 14 . 19 . . . 9 2 . 5 . . . . 2 . 9 1 . 2 3 Terminals 83 | . 19 . 21 . . . 12 2 . 5 . . . 2 2 . 8 5 . 2 5 Fabricators . | . . . . . . . . . . . . . . . . . . . . . . Repair Stations . | . . . . . . . . . . . . . . . . . . . . . . Recycling Units 4 | . . . 4 . . . . . . . . . . . . . . . . . . Scanalyzers . | . . . . . . . . . . . . . . . . . . . . . . Garrison Access 5 | . . . . . . . . . . 1 . . . . 2 . . . . . 2 Terminal Hacks 57 | . 7 . 5 2 1 . 6 . . 2 . . 30 2 . . . 1 . . 1 Record 15 | . . . . . 1 . . . . . . . 11 2 . . . 1 . . . Part Schematic 12 | . . . . . . . . . . . . . 12 . . . . . . . . Robot Schematic 4 | . . . . . . . . . . . . . 4 . . . . . . . . Robot Analysis 1 | . . . 1 . . . . . . . . . . . . . . . . . . Prototype ID Bank 4 | . . . . . . . 1 . . . . . 3 . . . . . . . . Open Door 2 | . . . . 2 . . . . . . . . . . . . . . . . . Branch Access Points 2 | . 1 . . . . . . . . 1 . . . . . . . . . . . Emergency Access Points 1 | . 1 . . . . . . . . . . . . . . . . . . . . Terminal Index 2 | . 1 . 1 . . . . . . . . . . . . . . . . . . Alert Level 3 | . 1 . . . . . 1 . . . . . . . . . . . . . 1 Unreport Threat 4 | . 1 . . . . . 2 . . 1 . . . . . . . . . . . Locate Traps 1 | . . . . . . . 1 . . . . . . . . . . . . . . Recall Reinforcements 1 | . . . . . . . 1 . . . . . . . . . . . . . . Hauler Manifests 1 | . 1 . . . . . . . . . . . . . . . . . . . . Zone Layout 4 | . 1 . 3 . . . . . . . . . . . . . . . . . . Fabricator Hacks . | . . . . . . . . . . . . . . . . . . . . . . Repair Station Hacks . | . . . . . . . . . . . . . . . . . . . . . . Recycling Unit Hacks 4 | . . . 4 . . . . . . . . . . . . . . . . . . Process 2 | . . . 2 . . . . . . . . . . . . . . . . . . Report Inventory 1 | . . . 1 . . . . . . . . . . . . . . . . . . Retrieve Matter 1 | . . . 1 . . . . . . . . . . . . . . . . . . Scanalyzer . | . . . . . . . . . . . . . . . . . . . . . . Garrison Access Hacks 2 | . . . . . . . . . . 1 . . . . . . . . . . 1 Seal Access 2 | . . . . . . . . . . 1 . . . . . . . . . . 1 Unauthorized Hacks 11 | . 5 . 4 . . . 1 1 . . . . . . . . . . . . . Terminals 11 | . 5 . 4 . . . 1 1 . . . . . . . . . . . . . Track 2 | . 1 . 1 . . . . . . . . . . . . . . . . . . Assimilate 1 | . 1 . . . . . . . . . . . . . . . . . . . . Botnet 6 | . 2 . 2 . . . 1 1 . . . . . . . . . . . . . Operators 2 | . 1 . 1 . . . . . . . . . . . . . . . . . . Fabricators . | . . . . . . . . . . . . . . . . . . . . . . Repair Stations . | . . . . . . . . . . . . . . . . . . . . . . Recycling Units . | . . . . . . . . . . . . . . . . . . . . . . Scanalyzers . | . . . . . . . . . . . . . . . . . . . . . . Garrison Access . | . . . . . . . . . . . . . . . . . . . . . . Data Cores Recovered 2 | . . . . . . . . . . 1 . . . . . . . . . . 1 Used 1 | . . . . . . . . . . . . . . . . . . . . . 1 Hacking Detections 29 | . 4 . 5 . . . 3 1 . 2 . . . 1 2 . 3 2 . 1 5 Full Trace Events 2 | . . . . . . . . . . . . . . . 1 . . 1 . . . Feedback Events . | . . . . . . . . . . . . . . . . . . . . . . Feedback Blocked . | . . . . . . . . . . . . . . . . . . . . . . Robot Schematics Acquired 4 | . . . . . . . . . . . . . 4 . . . . . . . . Robots Built . | . . . . . . . . . . . . . . . . . . . . . . Authchips . | . . . . . . . . . . . . . . . . . . . . . . Time . | . . . . . . . . . . . . . . . . . . . . . . Total Robot Build Rating . | . . . . . . . . . . . . . . . . . . . . . . Part Schematics Acquired 12 | . . . . . . . . . . . . . 12 . . . . . . . . Parts Built . | . . . . . . . . . . . . . . . . . . . . . . Authchips . | . . . . . . . . . . . . . . . . . . . . . . Time . | . . . . . . . . . . . . . . . . . . . . . . Total Part Build Rating . | . . . . . . . . . . . . . . . . . . . . . . Parts Repaired . | . . . . . . . . . . . . . . . . . . . . . . Time . | . . . . . . . . . . . . . . . . . . . . . . Parts Recycled . | . . . . . . . . . . . . . . . . . . . . . . Recycled Matter 43 | . . . 43 . . . . . . . . . . . . . . . . . . Retrieved Matter . | . . . . . . . . . . . . . . . . . . . . . . Retrieved Components . | . . . . . . . . . . . . . . . . . . . . . . Parts Scanalyzed . | . . . . . . . . . . . . . . . . . . . . . . Part Schematics Acquired . | . . . . . . . . . . . . . . . . . . . . . . Parts Damaged . | . . . . . . . . . . . . . . . . . . . . . . Bothacking | -11 -10 -10 -9 -9 -9 -8 -8 -7 -7 -7 -7 -7 -7 -6 -6 -5 -5 -5 -5 -5 -4 ------------ Run | Scr Mat Min Mat Min Exi Min Mat Fac Was Fac Low Low Dat Pro Fac Fac Ext Cet Arc Hub Fac Used RIF Installer . | . . . . . . . . . . . . . . . . . . . . . . Robots Hacked . | . . . . . . . . . . . . . . . . . . . . . . Non-combat . | . . . . . . . . . . . . . . . . . . . . . . Combat . | . . . . . . . . . . . . . . . . . . . . . . Robot Hacks Applied . | . . . . . . . . . . . . . . . . . . . . . . Relay Couplers Released 10 | . . . . . . . . 3 . 3 . . . . . . . . . . 4 Machine Destruction 6 | . . . . . . . . 3 . 3 . . . . . . . . . . . Programmers 4 | . . . . . . . . . . . . . . . . . . . . . 4 Fabnet Peak Effective % . | . . . . . . . . . . . . . . . . . . . . . . Robots Rewired 16 | . . . . . . . . . . . . . . . . . 16 . . . . Allies Hacked . | . . . . . . . . . . . . . . . . . . . . . . Hacks Repelled . | . . . . . . . . . . . . . . . . . . . . . . Allies | -11 -10 -10 -9 -9 -9 -8 -8 -7 -7 -7 -7 -7 -7 -6 -6 -5 -5 -5 -5 -5 -4 -------- Run | Scr Mat Min Mat Min Exi Min Mat Fac Was Fac Low Low Dat Pro Fac Fac Ext Cet Arc Hub Fac Total Allies 48 | . 1 4 . 2 . . . . 20 3 . . . 1 . . 17 . . . . Largest Group 20 | . 1 4 1 2 2 . . . 20 20 20 6 3 4 4 . 11 1 . . . Highest-Rated Group 594 | . 10 71 16 45 45 . . . 544 594 594 164 75 174 174 . 451 153 . . . Highest-Rated Ally 159 | . 10 31 16 31 31 . . . 35 35 35 31 26 96 96 . 159 153 . . . Total Orders . | . . . . . . . . . . . . . . . . . . . . . . Ally Attacks 432 | . . 9 13 . . . . . . 85 32 25 . 12 19 . 202 35 . . . Total Damage 10457 | . . 140 105 . . . . . . 1414 437 397 . 339 988 . 4933 1704 . . . Kills 74 | . . 2 3 . . . . . . 15 3 4 . 3 5 . 31 8 . . . Allies Corrupted 9 | . . . . . . . . . . . 9 . . . . . . . . . . Allies Melted 2 | . . . . . . . . . . . . 2 . . . . . . . . . Intel | -11 -10 -10 -9 -9 -9 -8 -8 -7 -7 -7 -7 -7 -7 -6 -6 -5 -5 -5 -5 -5 -4 ------- Run | Scr Mat Min Mat Min Exi Min Mat Fac Was Fac Low Low Dat Pro Fac Fac Ext Cet Arc Hub Fac Robot Analysis Total 1 | . . . 1 . . . . . . . . . . . . . . . . . . Derelict Logs Recovered 6 | . . 2 . 1 . . . . . . 2 1 . . . . . . . . . Drone Launches . | . . . . . . . . . . . . . . . . . . . . . . Drone Recoveries . | . . . . . . . . . . . . . . . . . . . . . . Exploration | -11 -10 -10 -9 -9 -9 -8 -8 -7 -7 -7 -7 -7 -7 -6 -6 -5 -5 -5 -5 -5 -4 ------------- Run | Scr Mat Min Mat Min Exi Min Mat Fac Was Fac Low Low Dat Pro Fac Fac Ext Cet Arc Hub Fac Turns Passed 12371 | 65 365 539 1892 389 133 659 346 322 338 691 495 588 150 572 955 146 1584 386 309 211 1236 Spaces Moved 6424 | 53 285 306 967 314 134 460 217 141 144 333 229 278 76 255 425 237 682 150 125 98 515 Core 384 | 17 . . . . . . . . . . . . . . 85 237 43 . . . 2 Treads 2608 | . 2 306 597 . . 66 . . . . 21 60 . . 87 . 585 150 125 98 511 Legs 2 | . . . . . . . . . . . . . . . . . . . . . 2 Wheels 3430 | 36 283 . 370 314 134 394 217 141 144 333 208 218 76 255 253 . 54 . . . . Hover . | . . . . . . . . . . . . . . . . . . . . . . Flight . | . . . . . . . . . . . . . . . . . . . . . . Fastest Speed 50 | 50 80 160 95 100 100 100 105 110 110 200 200 200 200 170 50 50 50 160 160 160 160 Average Speed 152 | 95 94 160 170 100 100 109 106 112 139 200 203 208 200 191 152 51 176 160 170 160 172 Slowest Speed 800 | 250 160 160 240 100 100 160 110 155 215 200 240 240 200 215 320 100 400 160 240 160 800 Overloaded Moves . | . . . . . . . . . . . . . . . . . . . . . . Propulsion Burnouts . | . . . . . . . . . . . . . . . . . . . . . . Robots Hopped . | . . . . . . . . . . . . . . . . . . . . . . Cave-ins Triggered . | . . . . . . . . . . . . . . . . . . . . . . Exploration Rate (%) 45 | 4 56 65 78 76 52 71 26 7 79 13 41 32 68 52 12 9 72 71 77 13 22 Regions Visited 21 Branch Regions 12 Pre-discovered Areas 2 | . . . . . 1 . . . . . . . 1 . . . . . . . . Known Exits Taken 7 | . 1 . 1 1 1 1 1 . . 1 . . . . . . . . . . . Unknown Exits Taken 12 | 1 . 1 . . . . . . . . 1 1 1 1 1 1 1 1 1 1 . Scrap Searched 6 | . . . . 3 . . . . . . 1 2 . . . . . . . . . Spaces Dug 16 | . . 15 . . . . . . . . . . . . . . 1 . . . . Terrain Destroyed 516 | . 34 29 21 . . 22 . 27 . . 5 . . 72 48 . 10 5 10 12 221 Melee 1 | . . . . . . . . . . . . . . . . . 1 . . . . Projectile 73 | . . . . . . . . . . . 5 . . . 1 . 3 5 10 12 37 AOE 442 | . 34 29 21 . . 22 . 27 . . . . . 72 47 . 6 . . . 184 Terrain Rammed . | . . . . . . . . . . . . . . . . . . . . . . Walls Destroyed . | . . . . . . . . . . . . . . . . . . . . . . Machines Disabled . | . . . . . . . . . . . . . . . . . . . . . . Actions | -11 -10 -10 -9 -9 -9 -8 -8 -7 -7 -7 -7 -7 -7 -6 -6 -5 -5 -5 -5 -5 -4 --------- Run | Scr Mat Min Mat Min Exi Min Mat Fac Was Fac Low Low Dat Pro Fac Fac Ext Cet Arc Hub Fac Total 7937 | 63 332 338 1111 364 133 543 294 240 285 356 242 286 75 291 568 251 954 217 191 131 672 Wait 280 | . 6 6 5 19 . 14 9 44 113 13 . . . . 13 . 8 . 11 3 16 Move 6404 | 52 284 305 966 313 133 459 216 141 143 332 228 277 75 254 424 236 681 149 124 97 515 Hop . | . . . . . . . . . . . . . . . . . . . . . . Pick Up 116 | 2 4 5 20 7 . 5 7 1 5 6 . 2 . 1 3 2 19 4 12 5 6 Fast Attach 120 | 6 1 . 11 . . 9 6 4 5 . 2 1 . 2 17 2 25 5 5 5 14 Attach 60 | . 1 . 3 2 . 6 3 3 1 . . . . . 13 1 10 1 2 . 14 Detach 6 | . . . . . . 2 2 . 1 . . . . . . . 1 . . . . Swap 109 | 3 9 7 10 2 . 3 8 10 4 . 2 1 . 7 8 . 9 6 6 . 14 Drop 158 | . 2 5 29 6 . 7 16 5 13 3 2 4 . 3 8 1 13 10 14 10 7 Fire 489 | . 25 10 61 15 . 25 27 32 . 2 7 1 . 24 82 9 46 29 17 11 66 Melee 32 | . . . . . . 12 . . . . . . . . . . 2 13 . . 5 Ram 1 | . . . . . . . . . . . . . . . . . . . . . 1 Kick . | . . . . . . . . . . . . . . . . . . . . . . Crush 21 | . . . 6 . . 1 . . . . . . . . . . . . . . 14 Escape Stasis 30 | . . . . . . . . . . . . . . . . . 30 . . . . Rewire 111 | . . . . . . . . . . . 1 . . . . . 110 . . . . Trap . | . . . . . . . . . . . . . . . . . . . . . . Miscellaneous . | . . . . . . . . . . . . . . . . . . . . . . Route ------- -11/Scrapyard -10/Materials (discovered 3 exits: *Mat / *Min x2) -10/Mines -9/Materials (discovered 4 exits: *Mat x2 / *Min / [*Sto]) -9/Mines (discovered 3 exits: *Mat x2 / *Exi) -9/Exiles -8/Mines -8/Materials (discovered 2 exits: *Fac x2) -7/Factory -7/Waste -7/Factory (discovered 2 exits: *Low x2) -7/Lower Caves -7/Lower Caves -7/Data Miner -6/Proximity Caves -6/Factory -5/Factory -5/Extension (discovered 3 exits: *Fac x2 / *Cet) -5/Cetus -5/Archives (discovered 2 exits: *Fac / *Hub) -5/Hub_04(d) -4/Factory History --------- Turn | Location | Event 6 | -11/Scrapyard | Discovered new exit (range 15) 66 | -11/Scrapyard | Entered Materials 211 | -10/Materials | Identified exit to Mines 272 | -10/Materials | Discovered new exit (range 16) 314 | -10/Materials | Build established: Mutant 431 | -10/Materials | Entered Mines 464 | -10/Mines | Assisted by bots powering up and referring to "LRC-V3" 520 | -10/Mines | Learned 2 Materials zone layouts 525 | -10/Mines | Received a Mining Laser from a helpful Derelict 688 | -10/Mines | Received a Rocket Launcher from a helpful Derelict 955 | -10/Mines | Discovered new exit (range 7) 970 | -10/Mines | Entered Materials 970 | -9/Materials | Accompanied by 1 ally 970 | -9/Materials | Evolved 2 slots: Propulsion x1, Weapon x1 971 | -9/Materials | Identified exit to Mines 972 | -9/Materials | Identified exit to Materials 1591 | -9/Materials | Build established: Gunner 1714 | -9/Materials | Discovered exit to Materials (range 13) 2023 | -9/Materials | Build established: Scavenger-Gunner 2295 | -9/Materials | Destroyed 7 combat bots 2468 | -9/Materials | Discovered new exit (range 16) 2560 | -9/Materials | Build established: Scavenger-Mutant 2862 | -9/Materials | Entered Mines 2912 | -9/Mines | Build established: Scavenger-Gunner 3016 | -9/Mines | Met a Derelict who couldn't figure out how to use a Trap Extractor 3046 | -9/Mines | Discovered exit to Materials (range 7) 3099 | -9/Mines | Learned 4 Materials zone layouts 3133 | -9/Mines | Found the Drone Emporium 3161 | -9/Mines | A weapon hastily lodged in a ceiling crevice suddenly fell to the ground 3210 | -9/Mines | Discovered exit to Materials (range 3) 3237 | -9/Mines | Deemed a non-threat by the Exiles lab entrance 3237 | -9/Mines | Discovered new exit (range 5) 3240 | -9/Mines | Identified exit to Exiles 3251 | -9/Mines | Entered Exiles 3251 | -9/Exiles | Accompanied by 2 allies 3252 | -9/Exiles | Identified exit to Mines 3276 | -9/Exiles | Met 8R-AWN 3281 | -9/Exiles | Led the pair of lost Derelicts to a safe place 3293 | -9/Exiles | Met EX-HEX 3328 | -9/Exiles | Met EX-DEC 3345 | -9/Exiles | Learned location of Zion (-6) 3384 | -9/Exiles | Entered Mines 3831 | -8/Mines | Lost 6 parts (3n3w) 4030 | -8/Mines | Discovered exit to Materials (range 11) 4043 | -8/Mines | Entered Materials 4043 | -8/Materials | Evolved 2 slots: Utility x2 4044 | -8/Materials | Identified exit to Factory 4384 | -8/Materials | Discovered exit to Factory (range 4) 4389 | -8/Materials | Entered Factory 4389 | -7/Factory | Evolved 2 slots: Power x1, Utility x1 4599 | -7/Factory | Garrison activated, responded to threat 4650 | -7/Factory | Lost 3 parts (1p1n1u) 4711 | -7/Factory | Sucked down chute 4711 | -7/Factory | Entered Waste 4712 | -7/Waste | Joined by Warlord forces that had cleared the area 4811 | -7/Waste | Discovered new exit (range 14) 4859 | -7/Waste | Found Damper Plating 4893 | -7/Waste | Build established: Scavenger-Tank 5049 | -7/Waste | Entered Factory 5049 | -7/Factory | Accompanied by 20 allies 5061 | -7/Factory | Identified exit to Lower Caves 5364 | -7/Factory | Garrison activated, responded to threat 5689 | -7/Factory | Allied Derelicts emerged from ambush trap array 5740 | -7/Factory | Entered Lower Caves 5740 | -7/Lower Caves | Accompanied by 20 allies 5828 | -7/Lower Caves | System corruption reached 10% 5895 | -7/Lower Caves | Encountered a Warlord checkpoint 6108 | -7/Lower Caves | Learned Factory interactive machine intel 6164 | -7/Lower Caves | Discovered new exit (range 8) 6213 | -7/Lower Caves | Learned 4 Factory zone layouts 6235 | -7/Lower Caves | Entered another Lower Caves area 6235 | -7/Lower Caves | Accompanied by 6 allies 6434 | -7/Lower Caves | Learned Factory stockpile data 6747 | -7/Lower Caves | Discovered new exit (range 14) 6823 | -7/Lower Caves | Entered Data Miner 6823 | -7/Data Miner | Accompanied by 3 allies 6823 | -7/Data Miner | Discovered new exit (range 6) 6861 | -7/Data Miner | Met Data Miner 6895 | -7/Data Miner | Learned location of Section 7 (-2) 6895 | -7/Data Miner | Acquired the access code to Warlord's prototype stash 6927 | -7/Data Miner | Received God Mode back door access code from Data Miner 6973 | -7/Data Miner | Entered Proximity Caves 6973 | -6/Proximity Caves | Accompanied by 3 allies 7220 | -6/Proximity Caves | Spotted B-75 Beast 7222 | -6/Proximity Caves | Escorted by Enhanced Grunt 7240 | -6/Proximity Caves | Allies destroyed B-75 Beast 7518 | -6/Proximity Caves | Build established: Tank 7531 | -6/Proximity Caves | Discovered new exit (range 5) 7545 | -6/Proximity Caves | Entered Factory 7545 | -6/Factory | Accompanied by 4 allies 7545 | -6/Factory | Evolved 2 slots: Propulsion x1, Utility x1 7548 | -6/Factory | Loaded intel: 50 interactive machine locations 7596 | -6/Factory | Incoming investigation squad redirected 7634 | -6/Factory | Garrison activated, responded to threat 7895 | -6/Factory | First assault squad dispatched 7921 | -6/Factory | Incoming assault squad redirected 8209 | -6/Factory | Spotted B-75 Beast 8294 | -6/Factory | Destroyed B-75 Beast 8307 | -6/Factory | Lost 12 parts (1p2n4u5w) 8311 | -6/Factory | System corruption reached 10% 8328 | -6/Factory | System corruption reached 30% 8385 | -6/Factory | Lost 7 parts (2p2n2u1w) 8451 | -6/Factory | Cargo convoy interrupted 8457 | -6/Factory | Core integrity fell below 50% 8458 | -6/Factory | Released all parts (6) 8465 | -6/Factory | Core integrity fell below 20% 8471 | -6/Factory | Incoming assault squad redirected 8487 | -6/Factory | Lost 8 parts (1p2n2u3w) 8491 | -6/Factory | Discovered new exit (range 14) 8500 | -6/Factory | Entered another Factory area 8500 | -5/Factory | Evolved 2 slots: Propulsion x2 8643 | -5/Factory | Discovered new exit (range 6) 8646 | -5/Factory | Entered Extension 8695 | -5/Extension | Rescued A7 8709 | -5/Extension | System corruption reached 10% 8738 | -5/Extension | Build established: Mutant 8934 | -5/Extension | System corruption reached 30% 9809 | -5/Extension | Lost 4 parts (1p3u) 9858 | -5/Extension | Build established: Commander-Tank 9895 | -5/Extension | Spotted B-75 Beast 9916 | -5/Extension | Allies destroyed B-75 Beast 9927 | -5/Extension | Destroyed B-75 Beast 10025 | -5/Extension | Discovered new exit (range 3) 10193 | -5/Extension | Discovered new exit (range 16) 10193 | -5/Extension | Discovered new exit (range 16) 10208 | -5/Extension | Build established: Scavenger-Tank 10230 | -5/Extension | Entered Cetus 10230 | -5/Cetus | Accompanied by 1 ally (A7) 10235 | -5/Cetus | Acquired a Cetus Manufacturing Module code from A7 10252 | -5/Cetus | Spotted Cetus Guard 10252 | -5/Cetus | Spotted Cetus Guard 10254 | -5/Cetus | Spotted Cetus Guard 10256 | -5/Cetus | Destroyed Cetus Guard 10260 | -5/Cetus | Spotted Cetus Guard 10264 | -5/Cetus | Allies destroyed Cetus Guard 10270 | -5/Cetus | Destroyed Cetus Guard 10272 | -5/Cetus | Destroyed Cetus Guard 10367 | -5/Cetus | Cetus Manufacturing Module disabled 10441 | -5/Cetus | Failed to start Cetus Manufacturing Module 10511 | -5/Cetus | Extracted ID and sensor layout for unrecognized location from A7's data core 10560 | -5/Cetus | Destroyed 8 combat bots 10576 | -5/Cetus | Found Prototype Protection 10576 | -5/Cetus | Identified Med. Regenerative Plating 10591 | -5/Cetus | Discovered new exit (range 15) 10616 | -5/Cetus | Entered Archives 10762 | -5/Archives | Lost 4 parts (4n) 10776 | -5/Archives | Discovered new exit (range 16) 10834 | -5/Archives | Discovered new exit (range 13) 10925 | -5/Archives | Entered Hub_04(d) 11083 | -5/Hub_04(d) | Discovered new exit (range 8) 11136 | -5/Hub_04(d) | Entered Factory 11136 | -4/Factory | Evolved 2 slots: Utility x1, Weapon x1 11540 | -4/Factory | Garrison activated, responded to threat 11644 | -4/Factory | Incoming assault squad redirected 11879 | -4/Factory | Spotted B-86 Titan 11999 | -4/Factory | Destroyed 9 combat bots 12093 | -4/Factory | Lost 3 parts (3n) 12164 | -4/Factory | First assault squad dispatched 12282 | -4/Factory | Incoming assault squad redirected 12316 | -4/Factory | System corruption reached 10% 12341 | -4/Factory | Core integrity fell below 50% 12348 | -4/Factory | Incoming assault squad redirected 12351 | -4/Factory | Lost 20 parts (2p5n6u7w) 12362 | -4/Factory | Core integrity fell below 20% 12372 | -4/Factory | Destroyed by G-67 Veteran with Plasma Rifle Last Messages --------------- 12351_ Flexi-carbon Leg destroyed. 12353_ R-10 Processor collects Hyb. Antimatter Reactor. 12355_ Flexi-carbon Leg destroyed. 12356_ Acquired Power Sword. 12356_ R-10 Processor collects Hyb. Antimatter Reactor. 12357_ G-73 Enforcer Hvy. Laser severed. 12357_ Ionic Axe follow-up attack on G-73 Enforcer. 12357_ G-73 Enforcer destroyed. 12358_ Acquired 78 matter. 12359_ R-10 Processor collects Unknown Slashing Weapon. 12361_ Critical hit (Burn: +37). 12362_ Power Sword destroyed. 12362_ Slammed into G-67 Veteran. 12362_ Destabilizing: System corrupted (+2). 12365_ Ionic Axe destroyed. 12366_ R-10 Processor collects Unknown Leg. 12368_ Hcp. Storage Unit destroyed. 12369_ R-10 Processor collects Hyb. Antimatter Reactor. 12369_ Critical hit (Burn: +50). 12372_ R-10 Processor collects Hvy. Laser. Map ----- +----------------------------------------------------+ | ** #?????????????????????????? | | #?????????????????????????? | | ####### #?????????????????????????? | | ??????# #?????????????????????????? | | ??????## ####### ########???????????????????? | | ??? #???????????????????? | | ???? """ # % """ #???????????????????? | | ??? """"???# """ #???????????????????? | | ??" ?""????#]] """" ##??????????????????? | | ??? ?????????#] """ #??????????????????? | | ?????????????# """ #???????????????????? | | ?????????????# "" #???????????????????? | | ??????]*] # " " #???????????????????? | | ???????* ! " #???????????????????? | | ?????????????# """ = #????????#;?????????? | | ?????????????# "" #??????? ?????????? | | ?????????????# % #?????? ??????????? | | ????????????####+# # #####? ???????????? | | ????????? # ????????????? | | ???????? % # ?????????????? | | ????????? % ; ??????????????? | | ????????? % R +???????????????? | | ?????????? #???????????????? | | ?????????? R #???????????????? | | ?????????? gg! #???????????????? | | ???????????##############@###+#???????????????? | | ?????????? "" !*g! #???????????????? | | ?????????????????# = !%g #???????????????? | | ?????????????????# g % #???????????????? | | ?????????????????#! /] #???????????????? | | ?????????????????# ! #???????????????? | | ?????????????????# #???????????????? | | ?????????????????# #???????????????? | | ?????????????????##############???????????????? | | | | | | | | | | | | | | | | | | | | | | | | | | | | | | | | | +----------------------------------------------------+ Best States ------------- Heat Dissipation 93 Coolant Potential 65 Energy Generation 37 Energy Capacity 2100 Matter Stores 300 Matter Capacity 550 Sight Range 16 Terrain Scan Range 24 Terrain Scan Density 10 Armor Coverage 675 Evasion (%) 50 Targeting Accuracy 6 Core Analysis 6 Recoil Reduction 6 Energy Filtering 50 Offensive Hacking 10 Defensive Hacking 10 Item Schematics ----------------- Combat Drone Bay | -7/Data Miner | Free Lgt. Regenerative Plating | -7/Data Miner | Free Cld. Aerolev Unit | -7/Data Miner | Free Gravity Neutralizer | -7/Data Miner | Free Imp. Heavy Machine Gun | -7/Data Miner | Free Linear Gravjet | -7/Data Miner | Free Hvy. Shock Bomb Launcher | -7/Data Miner | Free Adv. Drone Bay | -7/Data Miner | Free Gravmag Array | -7/Data Miner | Free Smartbomb Launcher | -7/Data Miner | Free Impulse Thruster | -7/Data Miner | Free Imp. Force Field | -7/Data Miner | Free Robot Schematics ------------------ C-17 Slicer | -7/Data Miner | Free B-48 Gladiator | -7/Data Miner | Free R-10 Processor | -7/Data Miner | Free Y-54 Guardian | -7/Data Miner | Free Fabricated ------------ Nothing Alien Tech Used ----------------- None Achievements -------------- We Are Legion Challenges ------------ None Game ------ Seed EfficiencyMasterPerforator Manual? 0 Play Time 01:32:44 Cumulative 116.1 hours Start 2022.12.02 @ 14:29:51 End 2022.12.02 @ 16:01:15 Sessions 1 Manual Loads 0 Difficulty Rogue Special Mode None Game No. 208 Rogue 208 Adventurer 0 Explorer 0 Win Type - Total 2 Types 1/0/1/0/0/0/0/0/0 Lore% 63 Gallery% 70 Achievement% 51 Wizard Run 0 Options --------- ASCII 0 Keyboard 0 Movement Mouse Keybinds 0 Fullscreen 1 Font 18/SmallcapsGlow Map View 76x50 Tactical HUD 1 Map Filters NONE Filters NONE Steam 1 RUN: c372a140-cd16-4f2b-a403-d0d81b47466a